Workbook

Sheet Opening Document
B2: UPON OPENING DOCUMENT…
B27: IF THE RED BANNER OCCURS….
B39: 1. DOWNLOAD DOCUMENT AND SAVE TO DESKTOP
B40: 2. RIGHT CLICK, PROPERTIES
B53: 3. CHECK OFF UNBLOCK, CLICK APPLY, CLICK OK
B54: 4. REOPEN EXCEL WORKBOOK
B55: 5. IF NEEDED, ENABLE EDITING, ENABLE CONTENT

Sheet Budget Summary
A2: Attachment A - Budget Worksheet
A19: Commonwealth Project Safe Neighborhood Initiative
A21: Cost Categories | C21: Cash Expenditures
A24: Personnel Costs | C24: ='Budget Detail'!E17 -> 0
A26: Overtime Costs | C26: ='Budget Detail'!E27 -> 0
A28: Fringe Benefit Costs | C28: ='Budget Detail'!E37 -> 0
A30: Subawards / Contractors Costs | C30: ='Budget Detail'!E47 -> 0
A32: Travel Costs | C32: ='Budget Detail'!E57 -> 0
A34: Equipment Costs | C34: ='Budget Detail'!E67 -> 0
A36: Supplies Costs | C36: ='Budget Detail'!E77 -> 0
A38: Other Costs | C38: ='Budget Detail'!E87 -> 0
A40: Total Costs | C40: =C24+C26+C28+C30+C34+C32+C36+C38 -> 0
A43: Name of Applicant Organization

Sheet Budget Detail
A1: Executive Office of Public Safety and Security
A2: Office of Grants and Research
A3: Commonwealth Project Safe Neighborhood Initiative
A4: =CONCATENATE("Attachment A - ", 'Budget Summary'!B43) -> Attachment A -
A6: INSTRUCTIONS: This is a macro-enabled document. Please make sure that you read the instructions on the Opening Document tab upon opening this document to make sure that macros are enabled macros. The items marked as Example are only examples, and do not necessarily reflect items in your requested budget. Please note that the subtotals will auto-populate based on the numbers reported within each category. Your requested budget per cost category shall be entered in the rows below the Examples using the "Add" command button to add another row if needed. If you have any questions, please contact the BJAG grant manager assigned in the Availability of Grant Funds (AGF) document.
A7: Please read the Availability of Grant Funds (AGF) document. This will outline key dates, funding criteria, allowable and unallowable costs. Cost category definitions are highlighted in the Budget Guidelines tab.
A8: Only a Massachusetts District Attorney’s Office and the Massachusetts State Police are eligible to apply. A District Attorney’s Office may solicit up to $100,000 in funding for this initiative, with a total of $1,100,000 available for all eleven (11) District Attorney Offices. The MSP may submit separate proposals covering different areas of the Commonwealth that they determine to have greatest need, with a total of $800,000 available to MSP. These funds must be prioritized to address the uptick in community violence and drug activity in our neighborhoods. Applicants may utilize funding over a 6-month period from January-June 30, 2024. Since these are state funds, all funds must be expended prior to June 30, 2024.
A10: PERSONNEL
A12: Employee Name | B12: Pay Rate | C12: Quantity | D12: Description | E12: Cash Expenditures
A13: Example: Sue Smith | B13: 23.4875 | C13: 300 | D13: Employee is projected to work a total of 300 hours during the grant at $23.4875/hr. | E13: =IF(B13="","",ROUND(ROUND(B13,4)*ROUND(C13,4),2)) -> 7046.25
A14: Example: Tracey Thomas | B14: 1730.77 | C14: 6 | D14: Please describe duties of Employee here. | E14: =IF(B14="","",ROUND(ROUND(B14,4)*ROUND(C14,4),2)) -> 10384.62
E15: =IF(B15="","",ROUND(ROUND(B15,4)*ROUND(C15,4),2)) -> 
A17: Subtotal: | E17: =SUM(OFFSET(Personnel,5,4):OFFSET(Overtime,-4,4)) -> 0
A20: OVERTIME
A22: Employee Name | B22: Pay Rate | C22: Quantity | D22: Description | E22: Cash Expenditures
A23: Example: Sue Smith | B23: 40 | C23: 104 | D23: Advocate worked a total of 104 hours for follow-up investigation of DV cases during the quarter at $40.00/hour. Reporting $2,500 match for S. Smith. | E23: =IF(B23="","",ROUND(ROUND(B23,4)*ROUND(C23,4),2)) -> 4160
A24: Example: Tracey Thomas | B24: 32 | C24: 52 | D24: Please describe duties of Employee here. | E24: =IF(B24="","",ROUND(ROUND(B24,4)*ROUND(C24,4),2)) -> 1664
E25: =IF(B25="","",ROUND(ROUND(B25,4)*ROUND(C25,4),2)) -> 
A27: Subtotal: | E27: =SUM(OFFSET(Overtime,5,4):OFFSET(Fringe,-4,4)) -> 0
A30: FRINGE AND PAYROLL TAX
A32: Employee Name | B32: Wages Applied to Fringe | C32: Contract Fringe Rate | D32: Description | E32: Cash Expenditures
A33: Example: Sue Smith | B33: 7046.25 | C33: 0.21 | D33: Per the fringe rate agreement, find the applicable cost categories to apply fringe to. In this example, the applicable cost category is "Personnel." Take Sue Smith's total wages reported on this worksheet under the "Personnel" section and multiply by the federally approved fringe rate or the fringe rate that was proposed and approved by OGR in the application process. ($7,046.25 * 21%). Match expenditures should be in relation to the match in the applicable category. | E33: =IF(B33="","",ROUND(ROUND(B33,4)*ROUND(C33,6),2)) -> 1479.71
A34: Example: Tracey Thomas | B34: 10384.62 | C34: 0.1 | D34: Per the fringe rate agreement, find the applicable cost categories to apply fringe to. In this example, the applicable cost category is "Personnel." Take Tracey Thomas' total wages reported on this worksheet under the "Personnel" section and multiply by the breakout of what rates are being charged per eligible cost. (7.5% - health insurance, 2% - life insurance, .5% - workers compensation). | E34: =IF(B34="","",ROUND(ROUND(B34,4)*ROUND(C34,6),2)) -> 1038.46
E35: =IF(B35="","",ROUND(ROUND(B35,4)*ROUND(C35,6),2)) -> 
E36: =IF(B36="","",ROUND(ROUND(B36,4)*ROUND(C36,8),2)) -> 
A37: Subtotal: | E37: =SUM(OFFSET(Fringe,5,4):OFFSET(Contractors,-4,4)) -> 0
A40: SUBAWARDS (SUBGRANTS), PROCUREMENT CONTRACTS, & CONSULTANT FEES
A42: Choose Category from List of Values Dropdown Below | B42: Pay Rate | C42: Quantity | D42: Description | E42: Cash Expenditures
A43: Example: JJ Counseling | B43: 200 | C43: 24 | D43: Counseling of domestic violence survivors; $200 per day x 24 days. Submitting reimbursement for $2,800. | E43: =IF(B43="","",ROUND(ROUND(B43,4)*ROUND(C43,4),2)) -> 4800
A44: Example: Subawards | B44: 45 | C44: 210 | D44: Please provide the names of each Subaward, Contractor and Consultant as well as duties/obligations that will be performed here. | E44: =IF(B44="","",ROUND(ROUND(B44,4)*ROUND(C44,4),2)) -> 9450
A47: Subtotal: | E47: =SUM(OFFSET(Contractors,5,4):OFFSET(Travel,-4,4)) -> 0
A50: TRAVEL
A52: Employee Name | B52: Rate | C52: Quantity | D52: Description | E52: Cash Expenditures
A53: Example: Sue Smith | B53: 250 | C53: 1 | D53: Gas reimbursement related to grant. | E53: =IF(B53="","",ROUND(ROUND(B53,4)*ROUND(C53,4),2)) -> 250
A54: Example: Tracey Thomas | B54: 0.62 | C54: 500 | D54: Travel related to grant; $0.62/mile x 500 miles | E54: =IF(B54="","",ROUND(ROUND(B54,4)*ROUND(C54,4),2)) -> 310
E55: =IF(B55="","",ROUND(ROUND(B55,4)*ROUND(C55,4),2)) -> 
A57: Subtotal: | E57: =SUM(OFFSET(Travel,5,4):OFFSET(Equipment,-4,4)) -> 0
A60: EQUIPMENT
A62: Equipment | B62: Cost | C62: Quantity | D62: Description | E62: Cash Expenditures
A63: Example: Laptop | B63: 1200 | C63: 1 | D63: Please describe purpose of Equipment here. | E63: =IF(B63="","",ROUND(ROUND(B63,4)*ROUND(C63,4),2)) -> 1200
A64: Example: Computer Keyboard | B64: 50 | C64: 3 | D64: Replacement keyboard, IBM part #872021. (3) keyboards at $50/each | E64: =IF(B64="","",ROUND(ROUND(B64,4)*ROUND(C64,4),2)) -> 150
E65: =IF(B65="","",ROUND(ROUND(B65,4)*ROUND(C65,4),2)) -> 
A67: Subtotal: | E67: =SUM(OFFSET(Equipment,5,4):OFFSET(Supplies,-4,4)) -> 0
A70: SUPPLIES
A72: Supplies/Company | B72: Cost | C72: Quantity | D72: Description | E72: Cash Expenditures
A73: Example: Copy Paper | B73: 50 | C73: 4 | D73: Please describe purpose of Supplies here. | E73: =IF(B73="","",ROUND(ROUND(B73,4)*ROUND(C73,4),2)) -> 200
A74: Example: ABC Office Supply | B74: 75 | C74: 1 | D74: 1 lot of office supplies (pens, staples, paperclips), $75/lot | E74: =IF(B74="","",ROUND(ROUND(B74,4)*ROUND(C74,4),2)) -> 75
E75: =IF(B75="","",ROUND(ROUND(B75,4)*ROUND(C75,4),2)) -> 
A77: Subtotal: | E77: =SUM(OFFSET(Supplies,5,4):OFFSET(Other,-4,4)) -> 0
A80: OTHER
A82: Item/Company | B82: Cost | C82: Quantity | D82: Description | E82: Cash Expenditures
A83: Example: Telephone | B83: 65 | C83: 6 | D83: Please describe purpose of item/activity here. | E83: =IF(B83="","",ROUND(ROUND(B83,4)*ROUND(C83,4),2)) -> 390
A84: Example: Heat | B84: 6000 | C84: 0.25 | D84: Projected total bill for office during grant period is $6,000.00; this program is 1/4 of office space | E84: =IF(B84="","",ROUND(ROUND(B84,4)*ROUND(C84,4),2)) -> 1500
A87: Subtotal: | E87: =SUM(OFFSET(Other,5,4):OFFSET(GrandTotal,-3,4)) -> 0
A89: Grand Total: | E89: =ROUND(SUM(E17+E27+E37+E47+E57+E67+E77+E87),2) -> 0

Sheet Budget Guidelines
A1: Allowable Budget Cost Categories | B1: Definitions and Documentation Requirements
A2: Personnel | B2: Costs associated with agency personnel. List position, percentage of time charged to grant, and annual salary. Include a brief description of each staff member’s duties/activities to be supported by grant funding.
A3: Overtime | B3: Overtime is limited to sworn law enforcement personnel only. Indicate overtime rate for each officer charged to the grant and the number of overtime hours. Refer to OGR Overtime Policy below.
A4: Fringe Benefits | B4: Eligible costs include the employer share of the following:
B5: · Life insurance
B6: · Health insurance
B7: · Social security costs
B8: · Pension costs
B9: · Unemployment insurance costs
B10: · Workers compensation insurance
B11: Direct fringe benefits can be either actual costs or rate per employee calculated by the fiscal or human resource unit in your organization. Actual known costs must be itemized by type and include rate computation. Include a copy of approved rate agreement in the application response.
A12: Contracts and Subawards and Consultants | B12: Contracts and Subawards: Provide a description of the product/services to be procured by contract and an estimate of the cost. Applicants must follow their organization's own procurement policy.
B13: Consultants: The maximum rate for consultants is $650 for an eight-hour day or $81.25 per hour. Any request for compensation over $650 per day requires prior written approval by OGR. Waiver of this maximum rate is at the discretion of OGR.
A14: Travel | B14: Travel directly related to the purpose of the grant. In-state travel costs associated with the grant shall include mileage rates not to exceed $.62 per mile, as well as the actual costs of tolls and parking. Note that no grant funds may be spent for out-of-state conference fees, out-of-state travel, or out-of-state lodging.
A15: Equipment/Technology | B15: Tangible, non-expendable personal property having a useful life of more than one year; cost based on classification of equipment.
A16: Supplies | B16: Supplies directly correlated to the program.
A17: Other | B17: List items that don’t fit within the above cost categories and the basis of the computation.
A20: Allowable Costs
A21: All applicants and their selected partners must be able to implement their program immediately upon execution of this award, which is anticipated before January 1, 2024.
A22: The following are examples of the types of allowable uses of funds under this application process:
A24: · Personnel, fringe and, indirect costs;
A25: · Overtime for suppression/investigation/enforcement efforts;
A26: · Subawards to local police departments and/or nonprofits;
A27: · Consultants to provide services or training to address key priority areas;
A28: · Small equipment items such as protective gear for officers in the field, surveillance cameras, etc.; and
A29: · Materials needed for evidence-based youth prevention or diversion programming.
A32: Unallowable Costs
A33: For this AGF, funds may NOT be used for any of the following:
A35: · Standard firearms or ammunition;
A36: · Construction, office furniture, or other like purchases;
A37: · Vehicles, vessels, or aircraft including unmanned aerial vehicle/unmanned aircraft, aircraft system, or aerial vehicles (UA/UAS/UAV);
A38: · Gift cards, tee-shirts, and trinkets;
A39: · Food and beverages; and
A40: · Extended warranty above and beyond the cost of the item and extending after the contract end date.
